fUST/lending_fUST_20250810
["ID","MTS","AMOUNT","RATE_DAILY","PERIOD"]
[378174912,1754764240792,-460.0,0.00021809,2]
[378174913,1754764240802,-460.0,0.00021809,2]
[378174914,1754764240811,-460.0,0.00021809,2]
[378174915,1754764240820,-460.0,0.00021809,2]
[378174916,1754764240830,-460.0,0.00021813,2]
[378174917,1754764240839,-214.03284082,0.00021813,2]
[378174918,1754764240849,-460.0,0.00021813,2]
[378174919,1754764240858,-1715.56,0.00021917,2]
[378174920,1754764240870,-200.0,0.00021955,15]
[378174921,1754764240880,-200.0,0.00021955,15]
[378174922,1754764240889,-200.0,0.00021955,15]
[378174923,1754764240899,-200.0,0.00021955,15]
[378174924,1754764240909,-200.0,0.00021955,15]
[378174925,1754764240919,-199.52,0.00021965,3]
[378174926,1754764240930,-1060.00748195,0.00021974,2]
[378174927,1754764240940,-399.05,0.00021975,3]
[378174928,1754764240950,-168.0,0.00022,2]
[378174929,1754764240958,-598.61,0.00022054,3]
[378174930,1754764240967,-598.58,0.00022064,3]
[378174931,1754764240977,-299.29,0.00022064,3]
[378174932,1754764240986,-897.91,0.00022064,3]
[378174933,1754764240995,-618.69,0.00022073,2]
[378174934,1754764241004,-460.0,0.00022073,2]
[378174935,1754764241013,-949.02,0.00022073,2]
[378174936,1754764241023,-460.0,0.00022074,2]
[378174937,1754764241034,-460.0,0.00022074,2]
[378174938,1754764241044,-526.05,0.00022074,2]
[378174939,1754764241053,-460.0,0.00022074,2]
[378174940,1754764241062,-1114.72,0.00022074,2]
[378174941,1754764241072,-1158.09,0.00022074,2]
[378174942,1754764241082,-460.0,0.00022074,2]
[378174943,1754764241094,-460.0,0.00022074,2]
[378174944,1754764241104,-460.0,0.00022074,2]
[378174945,1754764241113,-460.0,0.00022074,2]
[378174946,1754764241123,-460.0,0.00022074,2]
[378174947,1754764241132,-460.0,0.00022074,2]
[378174948,1754764241142,-460.0,0.00022074,2]
[378174949,1754764241152,-460.0,0.00022074,2]
[378174950,1754764241161,-460.0,0.00022074,2]
[378174951,1754764241171,-460.0,0.00022074,2]
[378174952,1754764241180,-460.0,0.00022074,2]
[378174953,1754764241189,-460.0,0.00022074,2]
[378174954,1754764241200,-207.15,0.00022074,2]
[378174955,1754764241209,-460.0,0.00022074,2]
[378174956,1754764241219,-959.35,0.00022074,2]
[378174957,1754764241229,-460.0,0.00022074,2]
[378174958,1754764241239,-593.0,0.00022074,2]
[378174959,1754764241248,-460.0,0.00022074,2]
[378174960,1754764241258,-460.0,0.00022074,2]
[378174961,1754764241267,-769.28,0.00022074,2]
[378174962,1754764241276,-460.0,0.00022074,2]
[378174963,1754764241286,-460.0,0.00022074,2]
[378174964,1754764241295,-460.0,0.00022075,2]
[378174965,1754764241304,-460.0,0.00022075,2]
[378174966,1754764241313,-460.0,0.00022075,2]
[378174967,1754764241323,-673.56,0.00022075,2]
[378174968,1754764241333,-757.76,0.00022075,2]
[378174969,1754764241342,-971.97,0.00022075,2]
[378174970,1754764241351,-460.0,0.00022075,2]
[378174971,1754764241361,-460.0,0.00022083,2]
[378174972,1754764241371,-2306.42,0.00022083,2]
[378174973,1754764241381,-910.57,0.00022083,2]
[378174974,1754764241390,-602.66,0.00022083,2]
[378174975,1754764241403,-691.0,0.00022083,2]
[378174976,1754764241412,-460.0,0.00022083,2]
[378174977,1754764241422,-697.62,0.00022083,2]
[378174978,1754764241432,-460.0,0.00022083,2]
[378174979,1754764241442,-460.0,0.00022083,2]
[378174980,1754764241451,-460.0,0.00022083,2]
[378174981,1754764241461,-460.0,0.00022083,2]
[378174982,1754764241471,-460.0,0.00022087,2]
[378174983,1754764241480,-500.0,0.00022215,2]
[378174984,1754764241489,-500.0,0.00022215,2]
[378174985,1754764241499,-500.0,0.00022281,2]
[378174986,1754764241508,-500.0,0.00022345,2]
[378174987,1754764241518,-618.69,0.00022347,2]
[378174988,1754764241528,-390.78150641,0.00022347,2]
[378174989,1754764241539,-949.02,0.00022347,2]
[378174990,1754764241549,-460.0,0.00022348,2]
[378174991,1754764241559,-460.0,0.00022348,2]
[378174992,1754764241569,-526.05,0.00022348,2]
[378174993,1754764241579,-460.0,0.00022348,2]
[378174994,1754764241589,-1114.72,0.00022348,2]
[378174995,1754764241598,-1158.09,0.00022348,2]
[378174996,1754764241607,-460.0,0.00022348,2]
[378174997,1754764241617,-460.0,0.00022348,2]
[378174998,1754764241626,-460.0,0.00022348,2]
[378174999,1754764241636,-460.0,0.00022348,2]
[378175000,1754764241646,-460.0,0.00022348,2]
[378175001,1754764241655,-460.0,0.00022348,2]
[378175002,1754764241664,-593.85867336,0.00022348,2]
[378175003,1754764241674,-460.0,0.00022348,2]
[378175004,1754764241683,-460.0,0.00022348,2]
[378175005,1754764241692,-460.0,0.00022348,2]
[378175006,1754764241702,-460.0,0.00022348,2]
[378175007,1754764241712,-460.0,0.00022348,2]
[378175008,1754764241723,-460.0,0.00022348,2]
[378175009,1754764241732,-959.35,0.00022348,2]
[378175010,1754764241742,-460.0,0.00022348,2]
[378175011,1754764241751,-593.0,0.00022348,2]
[378175012,1754764241761,-460.0,0.00022348,2]
[378175013,1754764241770,-460.0,0.00022348,2]
[378175014,1754764241779,-769.28,0.00022348,2]
[378175015,1754764241791,-460.0,0.00022348,2]
[378175016,1754764241803,-460.0,0.00022349,2]
[378175017,1754764241813,-460.0,0.00022349,2]
[378175018,1754764241822,-460.0,0.00022349,2]
[378175019,1754764241831,-673.56,0.00022349,2]
[378175020,1754764241841,-757.76,0.00022349,2]
[378175021,1754764241851,-971.97,0.00022349,2]
[378175022,1754764241860,-460.0,0.00022349,2]
[378175023,1754764241872,-438.79,0.00022352,2]
[378175024,1754764241881,-460.0,0.00022357,2]
[378175025,1754764241891,-2306.42,0.00022357,2]
[378175026,1754764241902,-910.57,0.00022357,2]
[378175027,1754764241912,-602.66,0.00022357,2]
[378175028,1754764241921,-691.0,0.00022357,2]
[378175029,1754764241931,-460.0,0.00022357,2]
[378175030,1754764241941,-697.62,0.00022357,2]
[378175031,1754764241983,-460.0,0.00022357,2]
[378175032,1754764241993,-460.0,0.00022357,2]
[378175033,1754764242002,-460.0,0.00022357,2]
[378175034,1754764242012,-460.0,0.00022357,2]
[378175035,1754764242022,-460.0,0.00022361,2]
[378175036,1754764242031,-476.21,0.00022422,2]
[378175037,1754764242040,-160.0,0.00022479,2]
[378175038,1754764242050,-160.0,0.00022488,2]
[378175039,1754764242060,-160.0,0.00022488,2]
[378175040,1754764242070,-160.0,0.00022488,2]
[378175041,1754764242084,-160.0,0.00022488,2]
[378175042,1754764242094,-160.0,0.00022488,2]
[378175043,1754764242103,-160.0,0.00022488,2]
[378175044,1754764242111,-312.16666667,0.00022488,2]
[378175045,1754764242120,-527.77735381,0.00022488,2]
[378175046,1754764242129,-215.40758176,0.00022488,2]
[378175047,1754764242139,-12666.14847857,0.00022488,2]
[378175048,1754764242148,-461.55179734,0.00022488,2]
[378175049,1754764242157,-842.95011917,0.00022488,2]
[378175050,1754764242166,-231.92402426,0.00022488,2]
[378175051,1754764242176,-216.61183532,0.00022488,2]
[378175052,1754764242185,-160.0,0.00022488,2]
[378175053,1754764242194,-3229.9240537,0.0002261,2]
[378175054,1754764242203,-618.69,0.00022621,2]
[378175055,1754764242212,-949.02,0.00022621,2]
[378175056,1754764242221,-822.93509361,0.00022621,2]
[378175057,1754764242230,-822.93509361,0.00022621,2]
[378175058,1754764242240,-822.93509361,0.00022621,2]
[378175059,1754764242249,-822.93509361,0.00022621,2]
[378175060,1754764242259,-822.93509361,0.00022621,2]
[378175061,1754764242267,-822.93509361,0.00022621,2]
[378175062,1754764242277,-822.93509361,0.00022621,2]
[378175063,1754764242286,-822.93509361,0.00022621,2]
[378175064,1754764242296,-822.93509361,0.00022621,2]
[378175065,1754764242307,-822.93509361,0.00022621,2]
[378175066,1754764242318,-822.93509361,0.00022621,2]
[378175067,1754764242328,-822.93509361,0.00022621,2]
[378175068,1754764242337,-822.93509361,0.00022621,2]
[378175069,1754764242346,-822.93509361,0.00022621,2]
[378175070,1754764242355,-822.93509361,0.00022621,2]
[378175071,1754764242365,-822.93509361,0.00022621,2]
[378175072,1754764242374,-822.93509361,0.00022621,2]
[378175073,1754764242383,-822.93509361,0.00022621,2]
[378175074,1754764242392,-239.16308001,0.00022621,2]
[378175075,1754764242402,-822.93509361,0.00022621,2]
[378175076,1754764242411,-460.0,0.00022622,2]
[378175077,1754764242421,-460.0,0.00022622,2]
[378175078,1754764242430,-526.05,0.00022622,2]
[378175079,1754764242439,-460.0,0.00022622,2]
[378175080,1754764242448,-1114.72,0.00022622,2]
[378175081,1754764242457,-1158.09,0.00022622,2]
[378175082,1754764242466,-460.0,0.00022622,2]
[378175083,1754764242475,-460.0,0.00022622,2]
[378175084,1754764242484,-460.0,0.00022622,2]
[378175085,1754764242494,-460.0,0.00022622,2]
[378175086,1754764242503,-460.0,0.00022622,2]
[378175087,1754764242514,-460.0,0.00022622,2]
[378175088,1754764242526,-460.0,0.00022622,2]
[378175089,1754764242537,-182.54345677,0.00022622,2]
[378175090,1754764242547,-460.0,0.00022622,2]
[378175091,1754764242556,-460.0,0.00022622,2]
[378175092,1754764242566,-460.0,0.00022622,2]
[378175093,1754764242575,-460.0,0.00022622,2]
[378175094,1754764242585,-959.35,0.00022622,2]
[378175095,1754764242595,-460.0,0.00022622,2]
[378175096,1754764242606,-593.0,0.00022622,2]
[378175097,1754764242617,-460.0,0.00022622,2]
[378175098,1754764242626,-460.0,0.00022622,2]
[378175099,1754764242636,-769.28,0.00022622,2]
[378175100,1754764242646,-460.0,0.00022622,2]
[378175101,1754764242656,-460.0,0.00022623,2]
[378175102,1754764242665,-460.0,0.00022623,2]
[378175103,1754764242675,-460.0,0.00022623,2]
[378175104,1754764242684,-673.56,0.00022623,2]
[378175105,1754764242694,-757.76,0.00022623,2]
[378175106,1754764242704,-971.97,0.00022623,2]
[378175107,1754764242713,-460.0,0.00022623,2]
[378175109,1754764242722,-246.76763945,0.00022631,2]
[378175110,1754764242731,-500.0,0.00022631,2]
[378175111,1754764242740,-460.0,0.00022631,2]
[378175113,1754764242749,-2306.42,0.00022631,2]
[378175114,1754764242758,-910.57,0.00022631,2]
[378175115,1754764242767,-602.66,0.00022631,2]
[378175117,1754764242777,-691.0,0.00022631,2]
[378175118,1754764242789,-460.0,0.00022631,2]
[378175119,1754764242799,-697.62,0.00022631,2]
[378175120,1754764242808,-460.0,0.00022631,2]
[378175121,1754764242818,-460.0,0.00022631,2]
[378175122,1754764242828,-460.0,0.00022631,2]
[378175123,1754764242837,-460.0,0.00022635,2]
[378175124,1754764242846,-1060.00748192,0.00022658,2]
[378175125,1754764242856,-200.0,0.00022709,10]
[378175126,1754764242867,-200.0,0.00022709,10]
[378175127,1754764242877,-200.0,0.00022709,10]
[378175128,1754764242886,-151.0,0.0002271,2]
[378175130,1754764242895,-151.0,0.0002271,2]
[378175132,1754764242908,-151.0,0.0002271,2]
[378175134,1754764242917,-151.0,0.0002271,2]
[378175135,1754764242927,-250.0,0.0002271,2]
[378175136,1754764242937,-151.0,0.0002271,2]
[378175137,1754764242946,-283.8854429,0.0002271,2]
[378175138,1754764242955,-151.0,0.0002271,2]
[378175139,1754764242965,-2183.31810187,0.0002271,2]
[378175140,1754764242974,-250.0,0.0002271,2]
[378175141,1754764242983,-151.0,0.0002271,2]
[378175142,1754764242993,-300.0,0.0002271,2]
[378175144,1754764243002,-151.0,0.0002271,2]
[378175145,1754764243012,-151.0,0.0002271,2]
[378175146,1754764243022,-250.0,0.0002271,2]
[378175147,1754764243032,-151.0,0.0002271,2]
[378175148,1754764243042,-151.0,0.0002271,2]
[378175149,1754764243051,-300.0,0.0002271,2]
[378175151,1754764243061,-151.0,0.0002271,2]
[378175152,1754764243070,-250.0,0.0002271,2]
[378175153,1754764243079,-151.0,0.0002271,2]
[378175154,1754764243089,-300.0,0.0002271,2]
[378175155,1754764243098,-151.0,0.0002271,2]
[378175156,1754764243108,-250.0,0.0002271,2]
[378175157,1754764243117,-151.0,0.0002271,2]
[378175158,1754764243126,-151.0,0.0002271,2]
[378175159,1754764243136,-151.0,0.0002271,2]
[378175160,1754764243145,-300.0,0.0002271,2]
[378175161,1754764243158,-151.0,0.0002271,2]
[378175162,1754764243167,-151.0,0.0002271,2]
[378175163,1754764243177,-250.0,0.0002271,2]
[378175164,1754764243186,-151.0,0.0002271,2]
[378175165,1754764243196,-151.0,0.0002271,2]
[378175166,1754764243205,-300.0,0.0002271,2]
[378175167,1754764243214,-151.0,0.0002271,2]
[378175168,1754764243224,-250.0,0.0002271,2]
[378175169,1754764243233,-151.0,0.0002271,2]
[378175170,1754764243243,-151.0,0.0002271,2]
[378175171,1754764243253,-300.0,0.0002271,2]
[378175172,1754764243262,-151.0,0.0002271,2]
[378175173,1754764243271,-250.0,0.0002271,2]
[378175174,1754764243281,-151.0,0.0002271,2]
[378175175,1754764243290,-164.42201597,0.0002271,2]
[378175176,1754764243300,-151.0,0.0002271,2]
[378175177,1754764243311,-300.0,0.0002271,2]
[378175178,1754764243321,-250.0,0.0002271,2]
[378175179,1754764243332,-151.0,0.0002271,2]
[378175180,1754764243342,-300.0,0.0002271,2]
[378175181,1754764243351,-151.0,0.0002271,2]
[378175182,1754764243361,-151.0,0.0002271,2]
[378175183,1754764243370,-250.0,0.0002271,2]
[378175184,1754764243380,-300.0,0.0002271,2]
[378175185,1754764243389,-151.0,0.0002271,2]
[378175186,1754764243400,-151.0,0.0002271,2]
[378175187,1754764243410,-151.0,0.0002271,2]
[378175188,1754764243419,-250.0,0.0002271,2]
[378175189,1754764243429,-300.0,0.0002271,2]
[378175190,1754764243438,-151.0,0.0002271,2]
[378175191,1754764243448,-151.0,0.0002271,2]
[378175192,1754764243459,-151.0,0.0002271,2]
[378175193,1754764243468,-250.0,0.0002271,2]
[378175194,1754764243478,-300.0,0.0002271,2]
[378175195,1754764243488,-151.0,0.0002271,2]
[378175197,1754764243498,-151.0,0.0002271,2]
[378175198,1754764243507,-151.0,0.0002271,2]
[378175199,1754764243517,-250.0,0.0002271,2]
[378175200,1754764243527,-300.0,0.0002271,2]
[378175201,1754764243537,-151.0,0.0002271,2]
[378175202,1754764243547,-151.0,0.0002271,2]
[378175203,1754764243557,-300.0,0.0002271,2]
[378175204,1754764243567,-151.0,0.0002271,2]
[378175205,1754764243577,-151.0,0.0002271,2]
[378175206,1754764243586,-151.0,0.0002271,2]
[378175207,1754764243596,-151.0,0.0002271,2]
[378175208,1754764243606,-151.0,0.0002271,2]
[378175209,1754764243615,-151.0,0.0002271,2]
[378175210,1754764243625,-151.0,0.0002271,2]
[378175211,1754764243634,-151.0,0.0002271,2]
[378175212,1754764243645,-151.0,0.0002271,2]
[378175213,1754764243656,-500.0,0.0002271,2]
[378175214,1754764243666,-151.0,0.0002271,2]
[378175215,1754764243675,-500.0,0.0002271,2]
[378175216,1754764243685,-151.0,0.0002271,2]
[378175217,1754764243695,-500.0,0.0002271,2]
[378175218,1754764243705,-151.0,0.0002271,2]
[378175219,1754764243715,-500.0,0.0002271,2]
[378175220,1754764243725,-151.0,0.0002271,2]
[378175221,1754764243734,-500.0,0.0002271,2]
[378175222,1754764243744,-151.0,0.0002271,2]
[378175223,1754764243753,-151.0,0.0002271,2]
[378175224,1754764243763,-151.0,0.0002271,2]
[378175225,1754764243772,-151.0,0.0002271,2]
[378175226,1754764243782,-500.0,0.0002271,2]
[378175227,1754764243795,-151.0,0.0002271,2]
[378175228,1754764243806,-500.0,0.0002271,2]
[378175229,1754764243816,-151.0,0.0002271,2]
[378175230,1754764243826,-500.0,0.0002271,2]
[378175231,1754764243836,-500.0,0.00022763,2]
[378175232,1754764243846,-1000.0,0.00022763,2]
[378175233,1754764243856,-2264.10087164,0.00022765,2]
[378175234,1754764243865,-153.0,0.00022801,2]
[378175235,1754764243875,-153.0,0.00022801,2]
[378175236,1754764243885,-2347.87260389,0.0002282,2]
[378175237,1754764243894,-500.0,0.00022845,2]
[378175238,1754764243905,-155.49476175,0.00022859,2]
[378175239,1754764243914,-2434.74389024,0.00022875,2]
[378175240,1754764243924,-500.0,0.00022884,2]
[378175241,1754764243933,-500.0,0.00022884,2]
[378175242,1754764243943,-500.0,0.00022884,2]
[378175243,1754764243952,-500.0,0.00022884,2]
[378175244,1754764243963,-618.69,0.00022895,2]
[378175245,1754764243973,-949.02,0.00022895,2]
[378175246,1754764243983,-460.0,0.00022896,2]
[378175247,1754764243992,-460.0,0.00022896,2]
[378175248,1754764244001,-526.05,0.00022896,2]
[378175249,1754764244011,-463.32616443,0.00022896,2]
[378175250,1754764244020,-460.0,0.00022896,2]
[378175251,1754764244030,-1114.72,0.00022896,2]
[378175252,1754764244039,-1158.09,0.00022896,2]
[378175253,1754764244049,-460.0,0.00022896,2]
[378175254,1754764244058,-460.0,0.00022896,2]
[378175255,1754764244068,-460.0,0.00022896,2]
[378175256,1754764244077,-529.54286207,0.00022896,2]
[378175257,1754764244087,-553.59825168,0.00022896,2]
[378175258,1754764244097,-460.0,0.00022896,2]
[378175259,1754764244106,-460.0,0.00022896,2]
[378175260,1754764244116,-460.0,0.00022896,2]
[378175261,1754764244125,-460.0,0.00022896,2]
[378175262,1754764244135,-460.0,0.00022896,2]
[378175263,1754764244144,-959.35,0.00022896,2]
[378175264,1754764244155,-460.0,0.00022896,2]
[378175265,1754764244165,-593.0,0.00022896,2]
[378175266,1754764244174,-460.0,0.00022896,2]
[378175267,1754764244184,-460.0,0.00022896,2]
[378175268,1754764244193,-769.28,0.00022896,2]
[378175269,1754764244202,-460.0,0.00022896,2]
[378175270,1754764244212,-460.0,0.00022897,2]
[378175271,1754764244221,-460.0,0.00022897,2]
[378175272,1754764244230,-460.0,0.00022897,2]
[378175273,1754764244240,-673.56,0.00022897,2]
[378175274,1754764244249,-757.76,0.00022897,2]
[378175275,1754764244258,-971.97,0.00022897,2]
[378175276,1754764244268,-460.0,0.00022897,2]
[378175277,1754764244277,-460.0,0.00022905,2]
[378175278,1754764244287,-2306.42,0.00022905,2]
[378175279,1754764244296,-910.57,0.00022905,2]
[378175280,1754764244305,-602.66,0.00022905,2]
[378175281,1754764244314,-691.0,0.00022905,2]
[378175282,1754764244324,-460.0,0.00022905,2]
[378175283,1754764244333,-697.62,0.00022905,2]
[378175284,1754764244342,-460.0,0.00022905,2]
[378175285,1754764244352,-460.0,0.00022905,2]
[378175286,1754764244361,-460.0,0.00022905,2]
[378175287,1754764244370,-460.0,0.00022909,2]
[378175288,1754764244380,-2524.82941417,0.0002293,2]
[378175289,1754764244389,-2618.2481025,0.00022985,2]
[378175290,1754764244399,-160.0,0.00023,2]
[378175291,1754764244408,-2715.12328229,0.0002304,2]
[378175292,1754764244417,-500.0,0.00023041,2]
[378175293,1754764244427,-565.9898197,0.00023041,2]
[378175294,1754764244436,-500.0,0.00023041,2]
[378175295,1754764244445,-491.36391457,0.00023041,2]
[378175296,1754764244455,-500.0,0.00023044,2]
[378175297,1754764244466,-500.0,0.0002305,2]
[378175298,1754764244475,-500.0,0.0002305,2]
[378175299,1754764244485,-833.98709597,0.00023075,2]
[378175300,1754764244494,-2815.58284374,0.00023095,2]
[378175301,1754764244504,-1596.7940095,0.0002315,2]
[378175302,1754764244514,-618.69,0.00023169,2]
[378175303,1754764244523,-949.02,0.00023169,2]
[378175304,1754764244533,-276.73,0.0002317,2]
[378175305,1754764244542,-565.57,0.0002317,2]
[378175306,1754764244552,-526.05,0.0002317,2]
[378175307,1754764244562,-460.0,0.0002317,2]
[378175308,1754764244571,-1114.72,0.0002317,2]
[378175309,1754764244581,-1158.09,0.0002317,2]
[378175310,1754764244591,-460.0,0.0002317,2]
[378175311,1754764244600,-460.0,0.0002317,2]
[378175312,1754764244610,-460.0,0.0002317,2]
[378175313,1754764244620,-460.0,0.0002317,2]
[378175314,1754764244630,-460.0,0.0002317,2]
[378175315,1754764244639,-460.0,0.0002317,2]
[378175316,1754764244649,-460.0,0.0002317,2]
[378175317,1754764244659,-460.0,0.0002317,2]
[378175318,1754764244668,-959.35,0.0002317,2]
[378175319,1754764244678,-460.0,0.0002317,2]
[378175320,1754764244688,-593.0,0.0002317,2]
[378175321,1754764244697,-460.0,0.0002317,2]
[378175322,1754764244706,-460.0,0.0002317,2]
[378175323,1754764244715,-769.28,0.0002317,2]
[378175324,1754764244725,-460.0,0.0002317,2]
[378175325,1754764244734,-460.0,0.00023171,2]
[378175326,1754764244744,-460.0,0.00023171,2]
[378175327,1754764244753,-460.0,0.00023171,2]
[378175328,1754764244763,-673.56,0.00023171,2]
[378175329,1754764244773,-757.76,0.00023171,2]
[378175330,1754764244783,-971.97,0.00023171,2]
[378175331,1754764244796,-460.0,0.00023171,2]
[378175332,1754764244806,-460.0,0.00023179,2]
[378175333,1754764244817,-2306.42,0.00023179,2]
[378175334,1754764244828,-910.57,0.00023179,2]
[378175335,1754764244840,-602.66,0.00023179,2]
[378175336,1754764244852,-691.0,0.00023179,2]
[378175337,1754764244862,-460.0,0.00023179,2]
[378175338,1754764244873,-697.62,0.00023179,2]
[378175339,1754764244882,-460.0,0.00023179,2]
[378175340,1754764244892,-460.0,0.00023179,2]
[378175341,1754764244901,-460.0,0.00023179,2]
[378175342,1754764244911,-460.0,0.00023183,2]
[378175343,1754764244921,-1482.64372618,0.00023254,2]
[378175344,1754764244930,-203.82073721,0.00023258,2]
[378175345,1754764244940,-160.0,0.00023322,2]
[378175346,1754764244949,-399.04,0.00023335,3]
[378175347,1754764244959,-1060.00748192,0.00023341,2]
[378175348,1754764244968,-798.1,0.00023345,3]
[378175349,1754764244977,-420.0,0.00023401,2]
[378175350,1754764244987,-11128.90006703,0.00023409,2]
[378175351,1754764244996,-2316.63082215,0.00023433,2]
[378175352,1754764245006,-1197.16,0.00023434,3]
[378175353,1754764245016,-598.58,0.00023434,3]
[378175354,1754764245025,-618.69,0.00023443,2]
[378175355,1754764245034,-949.02,0.00023443,2]
[378175356,1754764245044,-526.05,0.00023444,2]
[378175357,1754764245053,-460.0,0.00023444,2]
[378175358,1754764245062,-1114.72,0.00023444,2]
[378175359,1754764245072,-1158.09,0.00023444,2]
[378175360,1754764245082,-460.0,0.00023444,2]
[378175361,1754764245092,-460.0,0.00023444,2]
[378175362,1754764245103,-460.0,0.00023444,2]
[378175363,1754764245114,-460.0,0.00023444,2]
[378175364,1754764245124,-460.0,0.00023444,2]
[378175365,1754764245134,-460.0,0.00023444,2]
[378175366,1754764245143,-959.35,0.00023444,2]
[378175367,1754764245152,-460.0,0.00023444,2]
[378175368,1754764245162,-593.0,0.00023444,2]
[378175369,1754764245172,-460.0,0.00023444,2]
[378175370,1754764245183,-460.0,0.00023444,2]
[378175371,1754764245193,-769.28,0.00023444,2]
[378175372,1754764245203,-414.85,0.00023444,2]
[378175373,1754764245212,-460.0,0.00023445,2]
[378175374,1754764245222,-460.0,0.00023445,2]
[378175375,1754764245232,-673.56,0.00023445,2]
[378175376,1754764245242,-757.76,0.00023445,2]
[378175377,1754764245252,-971.97,0.00023445,2]
[378175378,1754764245263,-460.0,0.00023445,2]
[378175379,1754764245273,-460.0,0.00023453,2]
[378175380,1754764245283,-2306.42,0.00023453,2]
[378175381,1754764245294,-910.57,0.00023453,2]
[378175382,1754764245303,-602.66,0.00023453,2]
[378175383,1754764245313,-691.0,0.00023453,2]
[378175384,1754764245324,-460.0,0.00023453,2]
[378175385,1754764245335,-697.62,0.00023453,2]
[378175386,1754764245347,-460.0,0.00023453,2]
[378175387,1754764245358,-460.0,0.00023453,2]
[378175388,1754764245490,-460.0,0.00023453,2]
[378175389,1754764245499,-460.0,0.00023457,2]
[378175390,1754764245509,-476.21,0.000235,2]
[378175391,1754764245518,-1000.0,0.00023598,2]
[378175392,1754764245528,-3335.9483839,0.00023613,2]
[378175393,1754764245537,-618.69,0.00023717,2]
[378175394,1754764245547,-949.02,0.00023717,2]
[378175395,1754764245556,-526.05,0.00023718,2]
[378175396,1754764245565,-1114.72,0.00023718,2]
[378175397,1754764245575,-1158.09,0.00023718,2]
[378175398,1754764245585,-460.0,0.00023718,2]
[378175399,1754764245594,-460.0,0.00023718,2]
[378175400,1754764245604,-460.0,0.00023718,2]
[378175401,1754764245613,-460.0,0.00023718,2]
[378175402,1754764245622,-460.0,0.00023718,2]
[378175403,1754764245632,-460.0,0.00023718,2]
[378175404,1754764245642,-959.35,0.00023718,2]
[378175405,1754764245651,-460.0,0.00023718,2]
[378175406,1754764245660,-593.0,0.00023718,2]
[378175407,1754764245669,-460.0,0.00023718,2]
[378175408,1754764245679,-460.0,0.00023718,2]
[378175409,1754764245688,-769.28,0.00023718,2]
[378175410,1754764245698,-460.0,0.00023719,2]
[378175411,1754764245707,-460.0,0.00023719,2]
[378175412,1754764245716,-673.56,0.00023719,2]
[378175413,1754764245725,-757.76,0.00023719,2]
[378175414,1754764245735,-971.97,0.00023719,2]
[378175415,1754764245744,-460.0,0.00023719,2]
[378175416,1754764245753,-460.0,0.00023727,2]
[378175417,1754764245762,-2306.42,0.00023727,2]
[378175418,1754764245772,-910.57,0.00023727,2]
[378175419,1754764245781,-602.66,0.00023727,2]
[378175420,1754764245792,-691.0,0.00023727,2]